fUST/lending_fUST_20250202
["ID","MTS","AMOUNT","RATE_DAILY","PERIOD"]
[351215278,1738438240226,-3000.0,0.0001646,2]
[351215279,1738438240235,-3000.0,0.0001647,2]
[351215280,1738438240244,-4998.83108892,0.000165,2]
[351215282,1738438240254,-500.0,0.00016575,2]
[351215283,1738438240263,-500.0,0.00016575,2]
[351215284,1738438240272,-500.0,0.00016575,2]
[351215285,1738438240282,-500.0,0.00016575,2]
[351215286,1738438240292,-500.0,0.00016575,2]
[351215287,1738438240301,-449.24958018,0.00016575,2]
[351215289,1738438240311,-500.0,0.00016575,2]
[351215291,1738438240320,-500.0,0.00016575,2]
[351215292,1738438240330,-500.0,0.00016575,2]
[351215293,1738438240339,-501.88,0.00016575,2]
[351215294,1738438240349,-500.0,0.00016575,2]
[351215295,1738438240359,-500.0,0.00016575,2]
[351215296,1738438240369,-500.0,0.00016575,2]
[351215297,1738438240379,-500.0,0.00016575,2]
[351215298,1738438240388,-500.0,0.00016575,2]
[351215299,1738438240397,-1180.78,0.00016575,2]
[351215300,1738438240406,-500.0,0.00016575,2]
[351215302,1738438240415,-500.0,0.00016575,2]
[351215304,1738438240426,-808.28,0.00016575,2]
[351215305,1738438240439,-500.0,0.00016575,2]
[351215306,1738438240453,-1854.74,0.00016575,2]
[351215307,1738438240462,-694.36,0.00016575,2]
[351215308,1738438240474,-500.0,0.00016575,2]
[351215309,1738438240484,-889.48,0.00016575,2]
[351215310,1738438240493,-3561.72,0.00016575,2]
[351215311,1738438240503,-500.0,0.00016575,2]
[351215312,1738438240513,-586.06,0.00016575,2]
[351215313,1738438240523,-500.0,0.00016575,2]
[351215314,1738438240532,-500.0,0.00016575,2]
[351215315,1738438240542,-500.0,0.00016575,2]
[351215316,1738438240551,-500.0,0.00016575,2]
[351215317,1738438240561,-674.01,0.00016575,2]
[351215318,1738438240571,-500.0,0.00016575,2]
[351215319,1738438240580,-500.0,0.00016575,2]
[351215320,1738438240590,-500.0,0.00016575,2]
[351215321,1738438240600,-724.18,0.00016575,2]
[351215322,1738438240609,-500.0,0.00016575,2]
[351215323,1738438240619,-500.0,0.00016575,2]
[351215324,1738438240629,-500.0,0.00016575,2]
[351215325,1738438240639,-2686.5,0.00016575,2]
[351215326,1738438240649,-486.55063755,0.00016575,2]
[351215327,1738438240658,-10457.65,0.00016575,2]
[351215328,1738438240667,-608.65,0.00016575,2]
[351215329,1738438240678,-500.0,0.00016575,2]
[351215330,1738438240688,-500.0,0.00016575,2]
[351215331,1738438240699,-2904.67,0.00016575,2]
[351215332,1738438240709,-700.52,0.00016575,2]
[351215333,1738438240719,-512.74,0.00016575,2]
[351215334,1738438240729,-500.0,0.00016575,2]
[351215335,1738438240739,-155.717,0.0001665,2]
[351215336,1738438240749,-1154.9,0.000167,2]
[351215337,1738438240759,-409.17,0.00016712,2]
[351215338,1738438240770,-500.0,0.00016712,2]
[351215339,1738438240779,-500.0,0.00016712,2]
[351215340,1738438240789,-500.0,0.00016712,2]
[351215341,1738438240799,-500.0,0.00016712,2]
[351215342,1738438240808,-500.0,0.00016712,2]
[351215343,1738438240817,-500.0,0.00016712,2]
[351215344,1738438240827,-500.0,0.00016712,2]
[351215345,1738438240837,-501.88,0.00016712,2]
[351215346,1738438240846,-500.0,0.00016712,2]
[351215347,1738438240857,-500.0,0.00016712,2]
[351215348,1738438240866,-500.0,0.00016712,2]
[351215349,1738438240876,-500.0,0.00016712,2]
[351215350,1738438240886,-500.0,0.00016712,2]
[351215351,1738438240896,-1180.78,0.00016712,2]
[351215352,1738438240906,-500.0,0.00016712,2]
[351215353,1738438240916,-500.0,0.00016712,2]
[351215354,1738438240926,-808.28,0.00016712,2]
[351215355,1738438240935,-500.0,0.00016712,2]
[351215357,1738438240948,-1854.74,0.00016712,2]
[351215358,1738438240957,-694.36,0.00016712,2]
[351215359,1738438240968,-500.0,0.00016712,2]
[351215360,1738438240978,-889.48,0.00016712,2]
[351215361,1738438240988,-3561.72,0.00016712,2]
[351215362,1738438240998,-500.0,0.00016712,2]
[351215363,1738438241007,-586.06,0.00016712,2]
[351215364,1738438241016,-151.0,0.00016712,2]
[351215365,1738438241025,-500.0,0.00016712,2]
[351215366,1738438241034,-151.0,0.00016712,2]
[351215367,1738438241044,-500.0,0.00016712,2]
[351215368,1738438241064,-214.95572473,0.00016712,2]
[351215369,1738438241074,-500.0,0.00016712,2]
[351215370,1738438241085,-674.01,0.00016712,2]
[351215371,1738438241095,-500.0,0.00016712,2]
[351215372,1738438241105,-500.0,0.00016712,2]
[351215373,1738438241115,-500.0,0.00016712,2]
[351215374,1738438241124,-724.18,0.00016712,2]
[351215375,1738438241134,-500.0,0.00016712,2]
[351215376,1738438241144,-500.0,0.00016712,2]
[351215377,1738438241154,-500.0,0.00016712,2]
[351215378,1738438241164,-2686.5,0.00016712,2]
[351215379,1738438241173,-10457.65,0.00016712,2]
[351215380,1738438241184,-151.0,0.00016712,2]
[351215381,1738438241196,-399.132601,0.00016712,2]
[351215382,1738438241206,-399.132601,0.00016712,2]
[351215383,1738438241216,-608.65,0.00016712,2]
[351215384,1738438241225,-151.0,0.00016712,2]
[351215385,1738438241235,-500.0,0.00016712,2]
[351215386,1738438241245,-151.0,0.00016712,2]
[351215387,1738438241255,-500.0,0.00016712,2]
[351215388,1738438241265,-2904.67,0.00016712,2]
[351215389,1738438241274,-700.52,0.00016712,2]
[351215390,1738438241284,-151.0,0.00016712,2]
[351215391,1738438241294,-293.470739,0.00016712,2]
[351215392,1738438241303,-512.74,0.00016712,2]
[351215393,1738438241313,-500.0,0.00016712,2]
[351215394,1738438241322,-440.671,0.00016848,2]
[351215395,1738438241332,-165.44398851,0.00016848,2]
[351215396,1738438241342,-500.0,0.00016848,2]
[351215397,1738438241352,-500.0,0.00016848,2]
[351215398,1738438241362,-288.81805621,0.00016848,2]
[351215399,1738438241371,-151.0,0.00016849,2]
[351215400,1738438241381,-151.0,0.00016849,2]
[351215401,1738438241391,-151.0,0.00016849,2]
[351215402,1738438241401,-151.0,0.00016849,2]
[351215403,1738438241411,-151.0,0.00016849,2]
[351215404,1738438241420,-151.0,0.00016849,2]
[351215405,1738438241432,-178.280748,0.00016849,2]
[351215406,1738438241445,-151.0,0.00016849,2]
[351215407,1738438241455,-151.0,0.00016849,2]
[351215408,1738438241465,-500.0,0.00016849,2]
[351215409,1738438241475,-500.0,0.00016849,2]
[351215410,1738438241484,-500.0,0.00016849,2]
[351215411,1738438241494,-500.0,0.00016849,2]
[351215412,1738438241504,-151.0,0.00016849,2]
[351215413,1738438241515,-151.0,0.00016849,2]
[351215414,1738438241526,-151.0,0.00016849,2]
[351215415,1738438241536,-500.0,0.00016849,2]
[351215416,1738438241546,-500.0,0.00016849,2]
[351215417,1738438241556,-500.0,0.00016849,2]
[351215418,1738438241565,-501.88,0.00016849,2]
[351215419,1738438241575,-151.0,0.00016849,2]
[351215420,1738438241585,-500.0,0.00016849,2]
[351215421,1738438241594,-318.96507902,0.00016849,2]
[351215422,1738438241604,-151.0,0.00016849,2]
[351215423,1738438241614,-500.0,0.00016849,2]
[351215424,1738438241758,-151.0,0.00016849,2]
[351215425,1738438241768,-500.0,0.00016849,2]
[351215426,1738438241778,-500.0,0.00016849,2]
[351215427,1738438241790,-1180.78,0.00016849,2]
[351215428,1738438241800,-500.0,0.00016849,2]
[351215429,1738438241810,-151.0,0.00016849,2]
[351215430,1738438241819,-151.0,0.00016849,2]
[351215431,1738438241829,-500.0,0.00016849,2]
[351215432,1738438241839,-40.50432332,0.00016849,2]
[351215445,1738438243522,-238.41393043,0.00016438,2]
[351215446,1738438243533,-110.49567668,0.00016849,2]
[351215448,1738438243543,-151.0,0.00016849,2]
[351215449,1738438243552,-700.09039289,0.00016849,2]
[351215452,1738438243568,-108.18960711,0.00016849,2]
[351215454,1738438243578,-346.06845779,0.00016849,2]
[351215455,1738438243590,-61.13652221,0.00016849,2]
[351215456,1738438243599,-151.0,0.00016849,2]
[351215457,1738438243609,-389.18717766,0.00016849,2]
[351215458,1738438243620,-18.01780234,0.00016849,2]
[351215459,1738438243629,-500.0,0.00016849,2]
[351215460,1738438243639,-477.65758684,0.00016849,2]
[351215552,1738438890938,-10000.0,0.000188,10]
[351215559,1738439145336,238.96147,0.00013973,2]
[351215560,1738439283288,246.811513,0.00015011,2]
[351215561,1738439361142,-295.96,0.00015049,2]
[351215562,1738439372135,-948.5460081,0.00015049,2]
[351215563,1738439372158,-158.4593464,0.00015447,2]
[351215564,1738439372180,-195.315006,0.0001551,2]
[351215565,1738439372201,-1200.0,0.00015684,2]
[351215566,1738439372222,-513.60387964,0.00015734,2]
[351215637,1738439435091,-86.39612036,0.00015734,2]
[351215639,1738439435102,-177.18457424,0.00016338,2]
[351215641,1738439435112,-154.95033612,0.00016338,2]
[351215643,1738439435122,-300.0,0.00016437,2]
[351215646,1738439435132,-17.48896928,0.00016438,2]
[351215648,1738439435145,-482.51103072,0.00016438,2]
[351215649,1738439435155,-501.73240557,0.00016438,2]
[351215651,1738439435165,-500.0,0.00016438,2]
[351215653,1738439435175,-500.0,0.00016438,2]
[351215660,1738439435313,-500.0,0.00016438,2]
[351215663,1738439435334,-500.0,0.00016438,2]
[351215665,1738439435343,-503.15970803,0.00016438,2]
[351215666,1738439435353,-500.0,0.00016438,2]
[351215667,1738439435362,-500.0,0.00016438,2]
[351215668,1738439435371,-500.0,0.00016438,2]
[351215669,1738439435381,-374.11629205,0.00016438,2]
[351215670,1738439435391,-500.0,0.00016438,2]
[351215671,1738439435401,-500.0,0.00016438,2]
[351215672,1738439435410,-500.0,0.00016438,2]
[351215673,1738439435419,-26.60501927,0.00016438,2]
[351215703,1738439438886,-473.39498073,0.00016438,2]
[351215704,1738439438896,-26.60501927,0.00016438,2]
[351215705,1738439438936,-473.39498073,0.00016438,2]
[351215706,1738439438945,-515.5626792,0.00016438,2]
[351215707,1738439438955,-500.0,0.00016438,2]
[351215708,1738439438965,-500.0,0.00016438,2]
[351215709,1738439438974,-500.0,0.00016438,2]
[351215711,1738439438984,-500.0,0.00016438,2]
[351215713,1738439438993,-500.0,0.00016438,2]
[351215716,1738439439003,-500.0,0.00016438,2]
[351215717,1738439439012,-377.04637979,0.00016438,2]
[351215719,1738439439021,-500.0,0.00016438,2]
[351215720,1738439439031,-512.68794293,0.00016438,2]
[351215721,1738439439046,-500.0,0.00016438,2]
[351215722,1738439439057,-491.84916938,0.00016438,2]
[351215723,1738439439066,-500.0,0.00016438,2]
[351215724,1738439439076,-500.0,0.00016438,2]
[351215725,1738439439087,-500.0,0.00016438,2]
[351215726,1738439439097,-500.0,0.00016438,2]
[351215727,1738439439107,-500.0,0.00016438,2]
[351215728,1738439439117,-500.0,0.00016438,2]
[351215729,1738439439127,-500.0,0.00016438,2]
[351215730,1738439439137,-500.0,0.00016438,2]
[351215731,1738439439147,-500.0,0.00016438,2]
[351215732,1738439439156,-329.74289784,0.00016438,2]
[351215733,1738439439167,-271.82447508,0.00016438,2]
[351215734,1738439439176,-598.09784317,0.00016438,2]
[351215735,1738439439187,-500.0,0.00016438,2]
[351215736,1738439439197,-631.47,0.00016438,2]
[351215737,1738439439207,-500.0,0.00016438,2]
[351215738,1738439439217,-500.0,0.00016438,2]
[351215739,1738439439227,-500.0,0.00016438,2]
[351215740,1738439439238,-500.0,0.00016438,2]
[351215741,1738439439249,-503.53312682,0.00016438,2]
[351215742,1738439439259,-500.0,0.00016438,2]
[351215743,1738439439268,-500.0,0.00016438,2]
[351215744,1738439439278,-500.0,0.00016438,2]
[351215745,1738439439288,-500.0,0.00016438,2]
[351215746,1738439439302,-500.0,0.00016438,2]
[351215747,1738439439311,-500.0,0.00016438,2]
[351215748,1738439439321,-500.0,0.00016438,2]
[351215749,1738439439331,-500.55398058,0.00016438,2]
[351215750,1738439439340,-500.0,0.00016438,2]
[351215751,1738439439349,-500.0,0.00016438,2]
[351215752,1738439439358,-500.0,0.00016438,2]
[351215753,1738439439367,-500.0,0.00016438,2]
[351215754,1738439439376,-500.0,0.00016438,2]
[351215755,1738439439386,-394.34008367,0.00016438,2]
[351215756,1738439439395,-500.0,0.00016438,2]
[351215757,1738439439403,-500.0,0.00016438,2]
[351215758,1738439439413,-500.0,0.00016438,2]
[351215759,1738439439422,-501.00313432,0.00016438,2]
[351215760,1738439439431,-500.0,0.00016438,2]
[351215761,1738439439441,-500.0,0.00016438,2]
[351215762,1738439439450,-500.86824252,0.00016438,2]
[351215763,1738439439460,-500.0,0.00016438,2]
[351215764,1738439439469,-500.0,0.00016438,2]
[351215765,1738439439479,-500.0,0.00016438,2]
[351215766,1738439439489,-500.0,0.00016438,2]
[351215767,1738439439499,-500.0,0.00016438,2]
[351215768,1738439439509,-500.0,0.00016438,2]
[351215769,1738439439518,-500.0,0.00016438,2]
[351215770,1738439439528,-500.0,0.00016438,2]
[351215771,1738439439537,-500.0,0.00016438,2]
[351215772,1738439439551,-500.0,0.00016438,2]
[351215773,1738439439560,-500.0,0.00016438,2]
[351215774,1738439439569,-506.30643118,0.00016438,2]
[351215775,1738439439579,-500.0,0.00016438,2]
[351215776,1738439439587,-500.0,0.00016438,2]
[351215777,1738439439597,-500.0,0.00016438,2]
[351215778,1738439439606,-500.0,0.00016438,2]
[351215779,1738439439616,-500.0,0.00016438,2]
[351215780,1738439439625,-500.0,0.00016438,2]
[351215781,1738439439634,-500.0,0.00016438,2]
[351215782,1738439439643,-500.0,0.00016438,2]
[351215783,1738439439653,-500.0,0.00016438,2]
[351215784,1738439439663,-500.0,0.00016438,2]
[351215785,1738439439672,-500.0,0.00016438,2]
[351215786,1738439439681,-500.0,0.00016438,2]
[351215787,1738439439691,-500.0,0.00016438,2]
[351215788,1738439439700,-593.26171229,0.00016438,2]
[351215789,1738439439710,-500.0,0.00016438,2]
[351215790,1738439439720,-500.0,0.00016438,2]
[351215791,1738439439729,-500.0,0.00016438,2]
[351215792,1738439439739,-500.0,0.00016438,2]
[351215793,1738439439748,-500.0,0.00016438,2]
[351215794,1738439439758,-500.0,0.00016438,2]
[351215795,1738439439767,-500.0,0.00016438,2]
[351215796,1738439439776,-500.0,0.00016438,2]
[351215797,1738439439790,-500.0,0.00016438,2]
[351215798,1738439439803,-500.0,0.00016438,2]
[351215799,1738439439812,-500.0,0.00016438,2]
[351215800,1738439439823,-500.0,0.00016438,2]
[351215801,1738439439832,-500.0,0.00016438,2]
[351215802,1738439439842,-500.0,0.00016438,2]
[351215803,1738439439851,-500.0,0.00016438,2]
[351215804,1738439439863,-186.13897542,0.00016438,2]
[351215805,1738439439872,-500.0,0.00016438,2]
[351215806,1738439439881,-500.0,0.00016438,2]
[351215807,1738439439892,-500.0,0.00016438,2]
[351215808,1738439439901,-500.0,0.00016438,2]
[351215809,1738439439911,-500.0,0.00016438,2]
[351215810,1738439439921,-501.81943548,0.00016438,2]
[351215811,1738439439931,-500.0,0.00016438,2]
[351215812,1738439439941,-500.0,0.00016438,2]
[351215813,1738439439951,-500.0,0.00016438,2]
[351215814,1738439439960,-500.0,0.00016438,2]
[351215815,1738439439970,-501.87828107,0.00016438,2]
[351215816,1738439439979,-500.0,0.00016438,2]
[351215817,1738439439988,-500.0,0.00016438,2]
[351215818,1738439439998,-500.0,0.00016438,2]
[351215819,1738439440008,-500.0,0.00016438,2]
[351215820,1738439440017,-500.0,0.00016438,2]
[351215821,1738439440026,-202.50220175,0.00016438,2]
[351215822,1738439440036,-500.0,0.00016438,2]
[351215823,1738439440045,-500.0,0.00016438,2]
[351215824,1738439440057,-500.0,0.00016438,2]
[351215825,1738439440067,-500.0,0.00016438,2]
[351215826,1738439440076,-500.0,0.00016438,2]
[351215827,1738439440086,-502.70532787,0.00016438,2]
[351215828,1738439440096,-500.0,0.00016438,2]
[351215829,1738439440105,-500.0,0.00016438,2]
[351215830,1738439440115,-500.0,0.00016438,2]
[351215832,1738439440124,-500.0,0.00016438,2]
[351215833,1738439440133,-502.06170361,0.00016438,2]
[351215834,1738439440143,-500.0,0.00016438,2]
[351215835,1738439440152,-500.0,0.00016438,2]
[351215836,1738439440161,-213.66190001,0.00016438,2]
[351215837,1738439440170,-500.0,0.00016438,2]
[351215839,1738439440180,-500.0,0.00016438,2]
[351215840,1738439440189,-500.0,0.00016438,2]
[351215841,1738439440198,-500.0,0.00016438,2]
[351215842,1738439440207,-500.0,0.00016438,2]
[351215843,1738439440217,-500.0,0.00016438,2]
[351215844,1738439440226,-500.0,0.00016438,2]
[351215845,1738439440235,-500.0,0.00016438,2]
[351215847,1738439440244,-500.0,0.00016438,2]
[351215849,1738439440253,-500.0,0.00016438,2]
[351215851,1738439440263,-500.0,0.00016438,2]
[351215852,1738439440272,-500.0,0.00016438,2]
[351215853,1738439440282,-500.0,0.00016438,2]
[351215854,1738439440291,-500.0,0.00016438,2]
[351215855,1738439440302,-500.0,0.00016438,2]
[351215856,1738439440311,-500.0,0.00016438,2]
[351215857,1738439440321,-500.0,0.00016438,2]
[351215858,1738439440331,-403.18643544,0.00016438,2]
[351215859,1738439440340,-500.0,0.00016438,2]
[351215860,1738439440348,-500.0,0.00016438,2]
[351215861,1738439440358,-500.0,0.00016438,2]
[351215862,1738439440367,-500.0,0.00016438,2]
[351215863,1738439440376,-500.0,0.00016438,2]
[351215864,1738439440386,-290.07180557,0.00016438,2]
[351215865,1738439440395,-500.0,0.00016438,2]
[351215866,1738439440405,-500.0,0.00016438,2]
[351215867,1738439440415,-500.0,0.00016438,2]
[351215868,1738439440424,-500.0,0.00016438,2]
[351215869,1738439440434,-500.0,0.00016438,2]
[351215870,1738439440443,-500.0,0.00016438,2]
[351215871,1738439440453,-515.82718567,0.00016438,2]
[351215872,1738439440462,-500.0,0.00016438,2]
[351215873,1738439440471,-455.1489621,0.00016438,2]
[351215874,1738439440481,-500.0,0.00016438,2]
[351215875,1738439440490,-500.0,0.00016438,2]
[351215876,1738439440500,-500.0,0.00016438,2]
[351215877,1738439440510,-502.06719922,0.00016438,2]
[351215879,1738439440519,-500.0,0.00016438,2]
[351215881,1738439440529,-500.0,0.00016438,2]
[351215883,1738439440538,-500.0,0.00016438,2]
[351215896,1738439440654,-500.0,0.00016438,2]
[351215898,1738439440667,-500.0,0.00016438,2]
[351215900,1738439440680,-500.0,0.00016438,2]
[351215902,1738439440691,-500.0,0.00016438,2]
[351215904,1738439440703,-500.0,0.00016438,2]
[351215905,1738439440714,-500.0,0.00016438,2]
[351215907,1738439440723,-500.0,0.00016438,2]
[351215909,1738439440732,-500.0,0.00016438,2]
[351215911,1738439440741,-500.0,0.00016438,2]
[351215913,1738439440750,-500.0,0.00016438,2]
[351215915,1738439440759,-500.0,0.00016438,2]
[351215917,1738439440768,-605.8451724,0.00016438,2]
[351215919,1738439440778,-500.0,0.00016438,2]
[351215921,1738439440788,-500.0,0.00016438,2]
[351215923,1738439440808,-500.0,0.00016438,2]
[351215925,1738439440818,-500.0,0.00016438,2]
[351215928,1738439440828,-500.0,0.00016438,2]
[351215930,1738439440839,-500.0,0.00016438,2]
[351215932,1738439440849,-500.0,0.00016438,2]
[351215934,1738439440859,-2936.51,0.00016438,2]
[351215936,1738439440871,-500.0,0.00016438,2]
[351215938,1738439440881,-500.0,0.00016438,2]
[351215940,1738439440891,-500.0,0.00016438,2]
[351215942,1738439440900,-1173.8,0.00016438,2]
[351215944,1738439440910,-500.0,0.00016438,2]
[351215946,1738439440920,-1460.32,0.00016438,2]
[351215947,1738439440929,-1460.32,0.00016438,2]
[351215949,1738439440939,-1460.32,0.00016438,2]
[351215952,1738439440948,-1460.32,0.00016438,2]
[351215954,1738439440957,-500.0,0.00016438,2]
[351215956,1738439440967,-500.0,0.00016438,2]
[351215958,1738439440976,-500.0,0.00016438,2]
[351215960,1738439440986,-500.0,0.00016438,2]
[351215962,1738439440996,-738.55,0.00016438,2]
[351215964,1738439441006,-738.55,0.00016438,2]
[351215965,1738439441016,-738.55,0.00016438,2]
[351215967,1738439441025,-738.55,0.00016438,2]
[351215969,1738439441034,-738.55,0.00016438,2]
[351215972,1738439441045,-738.55,0.00016438,2]
[351215974,1738439441060,-738.55,0.00016438,2]
[351215976,1738439441069,-500.89371923,0.00016438,2]
[351215978,1738439441078,-500.0,0.00016438,2]
[351215980,1738439441089,-500.0,0.00016438,2]
[351215982,1738439441098,-500.0,0.00016438,2]
[351215984,1738439441107,-500.0,0.00016438,2]
[351215986,1738439441117,-500.0,0.00016438,2]
[351215988,1738439441126,-500.0,0.00016438,2]
[351215990,1738439441135,-500.0,0.00016438,2]
[351215992,1738439441143,-500.0,0.00016438,2]
[351215994,1738439441153,-500.0,0.00016438,2]
[351215996,1738439441165,-563.01645892,0.00016438,2]
[351215998,1738439441175,-503.08919752,0.00016438,2]
[351216000,1738439441185,-500.0,0.00016438,2]
[351216002,1738439441194,-500.0,0.00016438,2]
[351216004,1738439441204,-500.0,0.00016438,2]
[351216006,1738439441213,-500.0,0.00016438,2]
[351216008,1738439441223,-500.0,0.00016438,2]
[351216010,1738439441232,-500.0,0.00016438,2]
[351216012,1738439441242,-500.0,0.00016438,2]
[351216014,1738439441251,-889.09,0.00016438,2]
[351216016,1738439441261,-500.0,0.00016438,2]
[351216018,1738439441270,-500.0,0.00016438,2]
[351216020,1738439441279,-500.0,0.00016438,2]
[351216022,1738439441288,-500.0,0.00016438,2]
[351216024,1738439441297,-500.0,0.00016438,2]
[351216026,1738439441311,-500.0,0.00016438,2]
[351216027,1738439441320,-500.0,0.00016438,2]
[351216030,1738439441330,-500.0,0.00016438,2]
[351216032,1738439441340,-501.21221953,0.00016438,2]
[351216034,1738439441350,-500.0,0.00016438,2]
[351216036,1738439441359,-500.0,0.00016438,2]
[351216038,1738439441368,-500.0,0.00016438,2]
[351216040,1738439441377,-500.0,0.00016438,2]
[351216041,1738439441386,-500.0,0.00016438,2]
[351216043,1738439441395,-500.0,0.00016438,2]
[351216045,1738439441405,-468.93622354,0.00016438,2]
[351216048,1738439441417,-500.0,0.00016438,2]
[351216050,1738439441426,-500.0,0.00016438,2]
[351216052,1738439441437,-504.13007578,0.00016438,2]
[351216054,1738439441446,-500.0,0.00016438,2]
[351216056,1738439441456,-500.0,0.00016438,2]
[351216058,1738439441466,-500.0,0.00016438,2]
[351216060,1738439441476,-500.0,0.00016438,2]
[351216062,1738439441486,-500.0,0.00016438,2]
[351216064,1738439441495,-671.85,0.00016438,2]
[351216066,1738439441505,-501.47089337,0.00016438,2]
[351216068,1738439441514,-500.0,0.00016438,2]
[351216070,1738439441524,-568.91,0.00016438,2]
[351216072,1738439441533,-1898.16,0.00016438,2]
[351216074,1738439441542,-500.0,0.00016438,2]
[351216076,1738439441553,-500.0,0.00016438,2]
[351216077,1738439441563,-500.0,0.00016438,2]
[351216080,1738439441572,-500.0,0.00016438,2]
[351216082,1738439441582,-500.0,0.00016438,2]
[351216084,1738439441591,-402.63281711,0.00016438,2]
[351216086,1738439441600,-500.0,0.00016438,2]
[351216087,1738439441609,-578.52016324,0.00016438,2]
[351216089,1738439441618,-500.0,0.00016438,2]
[351216091,1738439441628,-1822.95,0.00016438,2]
[351216094,1738439441638,-501.75945103,0.00016438,2]
[351216096,1738439441648,-500.0,0.00016438,2]
[351216098,1738439441657,-500.0,0.00016438,2]
[351216100,1738439441667,-492.35972542,0.00016438,2]
[351216102,1738439441676,-500.0,0.00016438,2]
[351216104,1738439441685,-500.0,0.00016438,2]
[351216106,1738439441694,-502.55612792,0.00016438,2]
[351216108,1738439441704,-500.0,0.00016438,2]
[351216110,1738439441713,-500.0,0.00016438,2]
[351216112,1738439441722,-500.0,0.00016438,2]
[351216114,1738439441731,-500.0,0.00016438,2]
[351216116,1738439441740,-500.0,0.00016438,2]
[351216118,1738439441753,-511.2617337,0.00016438,2]
[351216120,1738439441762,-500.0,0.00016438,2]
[351216122,1738439441771,-151.0,0.00016438,2]
[351216124,1738439441782,-500.0,0.00016438,2]
[351216126,1738439441792,-500.0,0.00016438,2]
[351216128,1738439441803,-500.0,0.00016438,2]
[351216130,1738439441812,-8260.30352081,0.00016438,2]
[351216134,1738439441841,-0.04551281,0.00016438,2]
[351216136,1738439441852,-3003.70096638,0.00016438,2]
[351216138,1738439441864,-500.0,0.00016438,2]
[351216140,1738439441873,-217.37819664,0.00016438,2]
[351216142,1738439441885,-282.62180336,0.00016438,2]
[351216144,1738439441894,-890.55,0.00016438,2]
[351216146,1738439441903,-2436.68692892,0.00016438,2]
[351216148,1738439441914,-1203.26307108,0.00016438,2]
[351216150,1738439441923,-505.01156331,0.00016438,2]
[351216152,1738439441933,-667.51,0.00016438,2]
[351216154,1738439441943,-503.33115944,0.00016438,2]
[351216156,1738439441952,-500.0,0.00016438,2]
[351216158,1738439441962,-504.61595925,0.00016438,2]
[351216160,1738439441971,-500.0,0.00016438,2]
[351216162,1738439441980,-198.84965854,0.00016438,2]
[351216164,1738439441989,-500.0,0.00016438,2]
[351216166,1738439441998,-609.04,0.00016438,2]
[351216168,1738439442008,-730.1,0.00016438,2]
[351216171,1738439442018,-500.0,0.00016438,2]
[351216173,1738439442027,-500.0,0.00016438,2]
[351216175,1738439442037,-500.0,0.00016438,7]
[351216177,1738439442046,-500.0,0.00016438,2]
[351216178,1738439442059,-500.0,0.00016438,2]
[351216181,1738439442068,-258.75034146,0.00016438,2]